[Event "Titled Tuesday Blitz June 29 2021"]
[White "ChessNinja48"]
[Black "Arseniy_Nesterov"]
[WhiteElo "2412"]
[BlackElo "2814"]
[Result "0-1"]
[Round "01"]
[TimeControl "180+1"]
[Date "2021.06.29"]
[WhiteClock "0:00:33"]
[BlackClock "0:01:22"]

1. d4 {[%clk 0:03:00]}  d5 {[%clk 0:02:58]} 2. c4 {[%clk 0:02:59]}  e6 {[%clk 0:02:58]} 3. Nf3 {[%clk 0:03:00]}  Nf6 {[%clk 0:02:57]} 4. Nc3 {[%clk 0:03:00]}  c5 {[%clk 0:02:57]} 5. cxd5 {[%clk 0:02:59]}  exd5 {[%clk 0:02:58]} 6. g3 {[%clk 0:02:59]}  Nc6 {[%clk 0:02:58]} 7. Bg2 {[%clk 0:02:59]}  cxd4 {[%clk 0:02:58]} 8. Nxd4 {[%clk 0:02:59]}  Bc5 {[%clk 0:02:58]} 9. Nxc6 {[%clk 0:02:55]}  bxc6 {[%clk 0:02:59]} 10. O-O {[%clk 0:02:55]}  O-O {[%clk 0:02:59]} 11. Na4 {[%clk 0:02:49]}  Bb6 {[%clk 0:02:58]} 12. Bf4 {[%clk 0:02:05]}  Ba6 {[%clk 0:02:53]} 13. Rc1 {[%clk 0:02:02]}  Re8 {[%clk 0:02:51]} 14. Re1 {[%clk 0:02:00]}  Ba5 {[%clk 0:02:32]} 15. Bd2 {[%clk 0:01:56]}  Bb5 {[%clk 0:02:30]} 16. Nc5 {[%clk 0:01:54]}  Bb6 {[%clk 0:02:21]} 17. b3 {[%clk 0:01:11]}  Qe7 {[%clk 0:02:18]} 18. Bb4 {[%clk 0:01:11]}  a5 {[%clk 0:02:13]} 19. Ba3 {[%clk 0:01:07]}  Ng4 {[%clk 0:01:51]} 20. Qc2 {[%clk 0:01:03]}  Qf6 {[%clk 0:01:41]} 21. Bf3 {[%clk 0:00:44]}  Ne5 {[%clk 0:01:37]} 22. Bg2 {[%clk 0:00:40]}  h5 {[%clk 0:01:34]} 23. Bb2 {[%clk 0:00:36]}  Qd6 {[%clk 0:01:25]} 24. a4 {[%clk 0:00:36]}  Ba6 {[%clk 0:01:23]} 25. Nxa6 {[%clk 0:00:33]}  Rxa6 {[%clk 0:01:24]} 26. Bxe5 {[%clk 0:00:33]}  Rxe5 {[%clk 0:01:23]} 27. Qxc6 {[%clk 0:00:33]}  Bxf2+ {[%clk 0:01:22]} 0-1


[Site "https://www.chess.com"]

[Event "Titled Tuesday Blitz June 29 2021"]
[White "ChessQueen"]
[Black "A-S-00"]
[WhiteElo "2660"]
[BlackElo "2348"]
[Result "1-0"]
[Round "01"]
[TimeControl "180+1"]
[Date "2021.06.29"]
[WhiteClock "0:02:08"]
[BlackClock "0:00:40"]

1. e4 {[%clk 0:03:00]}  c5 {[%clk 0:02:59]} 2. c3 {[%clk 0:02:58]}  Nf6 {[%clk 0:02:58]} 3. e5 {[%clk 0:02:58]}  Nd5 {[%clk 0:02:58]} 4. d4 {[%clk 0:02:59]}  cxd4 {[%clk 0:02:58]} 5. Nf3 {[%clk 0:03:00]}  Nc6 {[%clk 0:02:59]} 6. cxd4 {[%clk 0:03:00]}  d6 {[%clk 0:02:59]} 7. Bc4 {[%clk 0:03:00]}  e6 {[%clk 0:02:58]} 8. O-O {[%clk 0:02:59]}  Be7 {[%clk 0:02:56]} 9. Qe2 {[%clk 0:03:00]}  O-O {[%clk 0:02:53]} 10. Rd1 {[%clk 0:03:00]}  Nb6 {[%clk 0:02:46]} 11. Bb3 {[%clk 0:02:56]}  Qc7 {[%clk 0:02:41]} 12. Nc3 {[%clk 0:02:54]}  a6 {[%clk 0:02:41]} 13. h4 {[%clk 0:02:49]}  dxe5 {[%clk 0:02:30]} 14. dxe5 {[%clk 0:02:47]}  Na5 {[%clk 0:02:24]} 15. Bc2 {[%clk 0:02:46]}  Qc4 {[%clk 0:02:06]} 16. Qe3 {[%clk 0:02:16]}  Bc5 {[%clk 0:01:36]} 17. Qg5 {[%clk 0:02:15]}  h6 {[%clk 0:00:57]} 18. Qg3 {[%clk 0:02:14]}  Kh8 {[%clk 0:00:43]} 19. Bd3 {[%clk 0:02:10]}  Qb4 {[%clk 0:00:41]} 20. a3 {[%clk 0:02:10]}  Qb3 {[%clk 0:00:40]} 21. Nd2 {[%clk 0:02:08]} 1-0


[Site "https://www.chess.com"]

[Event "Titled Tuesday Blitz June 29 2021"]
[White "ChristopherYoo"]
[Black "amatatanav"]
[WhiteElo "2946"]
[BlackElo "2451"]
[Result "1-0"]
[Round "01"]
[TimeControl "180+1"]
[Date "2021.06.29"]
[WhiteClock "0:01:16"]
[BlackClock "0:00:17"]

1. d4 {[%clk 0:02:54]}  Nf6 {[%clk 0:02:59]} 2. Nf3 {[%clk 0:02:54]}  e6 {[%clk 0:02:59]} 3. c4 {[%clk 0:02:55]}  d5 {[%clk 0:02:59]} 4. Nc3 {[%clk 0:02:53]}  Be7 {[%clk 0:02:58]} 5. Bf4 {[%clk 0:02:52]}  O-O {[%clk 0:02:56]} 6. e3 {[%clk 0:02:53]}  Nbd7 {[%clk 0:02:41]} 7. a3 {[%clk 0:02:50]}  c5 {[%clk 0:02:15]} 8. cxd5 {[%clk 0:02:49]}  Nxd5 {[%clk 0:02:08]} 9. Nxd5 {[%clk 0:02:49]}  exd5 {[%clk 0:02:08]} 10. dxc5 {[%clk 0:02:49]}  Nxc5 {[%clk 0:01:59]} 11. Be5 {[%clk 0:02:49]}  Be6 {[%clk 0:01:30]} 12. Be2 {[%clk 0:02:39]}  a5 {[%clk 0:01:18]} 13. O-O {[%clk 0:02:17]}  a4 {[%clk 0:01:15]} 14. Nd4 {[%clk 0:02:12]}  Qb6 {[%clk 0:01:06]} 15. Bg4 {[%clk 0:01:47]}  Bxg4 {[%clk 0:00:33]} 16. Qxg4 {[%clk 0:01:25]}  Bf6 {[%clk 0:00:34]} 17. Bxf6 {[%clk 0:01:22]}  Qxf6 {[%clk 0:00:34]} 18. Rac1 {[%clk 0:01:23]}  Rac8 {[%clk 0:00:25]} 19. Rc3 {[%clk 0:01:20]}  Ne6 {[%clk 0:00:18]} 20. Rxc8 {[%clk 0:01:17]}  Rxc8 {[%clk 0:00:17]} 21. Nxe6 {[%clk 0:01:16]}  fxe6 {[%clk 0:00:17]} 22. Qxa4 {[%clk 0:01:16]}  Qxb2 {[%clk 0:00:17]} 23. Qd7 {[%clk 0:01:16]} 1-0


[Site "https://www.chess.com"]

[Event "Titled Tuesday Blitz June 29 2021"]
[White "DFeco"]
[Black "QuintilianoR"]
[WhiteElo "2348"]
[BlackElo "2660"]
[Result "0-1"]
[Round "01"]
[TimeControl "180+1"]
[Date "2021.06.29"]
[WhiteClock "0:00:28"]
[BlackClock "0:02:01"]

1. c4 {[%clk 0:03:00]}  e6 {[%clk 0:02:57]} 2. g3 {[%clk 0:03:01]}  Nf6 {[%clk 0:02:57]} 3. Bg2 {[%clk 0:03:01]}  d5 {[%clk 0:02:57]} 4. Nf3 {[%clk 0:03:02]}  Be7 {[%clk 0:02:58]} 5. O-O {[%clk 0:03:02]}  O-O {[%clk 0:02:58]} 6. b3 {[%clk 0:03:01]}  c5 {[%clk 0:02:58]} 7. Bb2 {[%clk 0:03:01]}  Nc6 {[%clk 0:02:57]} 8. e3 {[%clk 0:02:59]}  b6 {[%clk 0:02:56]} 9. Nc3 {[%clk 0:02:57]}  dxc4 {[%clk 0:02:51]} 10. bxc4 {[%clk 0:02:57]}  Bb7 {[%clk 0:02:51]} 11. d4 {[%clk 0:02:37]}  Na5 {[%clk 0:02:45]} 12. Qe2 {[%clk 0:02:32]}  Rc8 {[%clk 0:02:42]} 13. Rfd1 {[%clk 0:02:01]}  cxd4 {[%clk 0:02:40]} 14. Rxd4 {[%clk 0:01:58]}  Qc7 {[%clk 0:02:36]} 15. Rc1 {[%clk 0:01:40]}  Rfd8 {[%clk 0:02:26]} 16. Nb5 {[%clk 0:01:36]}  Qb8 {[%clk 0:02:25]} 17. Rxd8+ {[%clk 0:01:30]}  Rxd8 {[%clk 0:02:24]} 18. Be5 {[%clk 0:01:28]}  Bxf3 {[%clk 0:02:19]} 19. Qb2 {[%clk 0:00:44]}  Qb7 {[%clk 0:02:17]} 20. Bxf3 {[%clk 0:00:44]}  Qxf3 {[%clk 0:02:17]} 21. Nxa7 {[%clk 0:00:44]}  Nxc4 {[%clk 0:02:08]} 22. Qc3 {[%clk 0:00:38]}  Rd1+ {[%clk 0:02:06]} 23. Rxd1 {[%clk 0:00:38]}  Qxd1+ {[%clk 0:02:07]} 24. Kg2 {[%clk 0:00:38]}  Qd5+ {[%clk 0:02:06]} 25. e4 {[%clk 0:00:32]}  Nxe4 {[%clk 0:02:02]} 26. Qd4 {[%clk 0:00:28]}  Nxe5 {[%clk 0:02:01]} 0-1


[Site "https://www.chess.com"]

[Event "Titled Tuesday Blitz June 29 2021"]
[White "DeTimmerman"]
[Black "OrtizAnahi2001"]
[WhiteElo "2786"]
[BlackElo "2409"]
[Result "1-0"]
[Round "01"]
[TimeControl "180+1"]
[Date "2021.06.29"]
[WhiteClock "0:00:46"]
[BlackClock "0:01:13"]

1. b4 {[%clk 0:03:00]}  e6 {[%clk 0:02:09]} 2. Bb2 {[%clk 0:02:54]}  Nf6 {[%clk 0:02:09]} 3. b5 {[%clk 0:02:53]}  b6 {[%clk 0:02:08]} 4. c4 {[%clk 0:02:54]}  Bb7 {[%clk 0:02:08]} 5. e3 {[%clk 0:02:53]}  Be7 {[%clk 0:02:09]} 6. a4 {[%clk 0:02:53]}  a6 {[%clk 0:02:09]} 7. Nf3 {[%clk 0:02:53]}  axb5 {[%clk 0:02:09]} 8. axb5 {[%clk 0:02:54]}  Rxa1 {[%clk 0:02:09]} 9. Bxa1 {[%clk 0:02:55]}  d5 {[%clk 0:02:09]} 10. Be2 {[%clk 0:02:53]}  dxc4 {[%clk 0:02:09]} 11. Bxc4 {[%clk 0:02:53]}  O-O {[%clk 0:02:10]} 12. O-O {[%clk 0:02:52]}  Nbd7 {[%clk 0:02:10]} 13. d4 {[%clk 0:02:45]}  Ne4 {[%clk 0:02:10]} 14. Nbd2 {[%clk 0:02:44]}  Ndf6 {[%clk 0:02:10]} 15. Bd3 {[%clk 0:02:40]}  c5 {[%clk 0:02:08]} 16. bxc6 {[%clk 0:02:39]}  Bxc6 {[%clk 0:02:08]} 17. Qc2 {[%clk 0:02:35]}  Qa8 {[%clk 0:02:01]} 18. Ne5 {[%clk 0:02:34]}  Bd5 {[%clk 0:01:59]} 19. Nxe4 {[%clk 0:02:26]}  Bxe4 {[%clk 0:01:58]} 20. f3 {[%clk 0:02:24]}  Bxd3 {[%clk 0:01:57]} 21. Qxd3 {[%clk 0:02:25]}  Rc8 {[%clk 0:01:56]} 22. Bb2 {[%clk 0:02:18]}  Qd5 {[%clk 0:01:54]} 23. e4 {[%clk 0:02:14]}  Qa5 {[%clk 0:01:54]} 24. Rd1 {[%clk 0:02:10]}  Bd6 {[%clk 0:01:51]} 25. Nc4 {[%clk 0:02:09]}  Qb4 {[%clk 0:01:50]} 26. Nxd6 {[%clk 0:01:48]}  Qxd6 {[%clk 0:01:48]} 27. e5 {[%clk 0:01:48]}  Qb4 {[%clk 0:01:43]} 28. Ba3 {[%clk 0:01:48]}  Qa4 {[%clk 0:01:34]} 29. exf6 {[%clk 0:01:48]}  gxf6 {[%clk 0:01:34]} 30. Be7 {[%clk 0:01:46]}  Kg7 {[%clk 0:01:30]} 31. d5 {[%clk 0:01:25]}  exd5 {[%clk 0:01:27]} 32. Qxd5 {[%clk 0:01:26]}  Rc2 {[%clk 0:01:25]} 33. Qd4 {[%clk 0:00:51]}  Qc6 {[%clk 0:01:14]} 34. Qg4+ {[%clk 0:00:49]}  Kh6 {[%clk 0:01:13]} 35. Bf8# {[%clk 0:00:46]} 1-0


[Site "https://www.chess.com"]

[Event "Titled Tuesday Blitz June 29 2021"]
[White "Fischerev7"]
[Black "Riazantsev"]
[WhiteElo "2386"]
[BlackElo "2736"]
[Result "0-1"]
[Round "01"]
[TimeControl "180+1"]
[Date "2021.06.29"]
[WhiteClock "0:00:01"]
[BlackClock "0:01:05"]

1. e4 {[%clk 0:03:00]}  e5 {[%clk 0:02:50]} 2. Nf3 {[%clk 0:03:00]}  Nc6 {[%clk 0:02:39]} 3. Bb5 {[%clk 0:02:59]}  a6 {[%clk 0:02:38]} 4. Ba4 {[%clk 0:02:58]}  d6 {[%clk 0:02:38]} 5. O-O {[%clk 0:02:58]}  Bd7 {[%clk 0:02:38]} 6. c3 {[%clk 0:02:58]}  Nf6 {[%clk 0:02:36]} 7. Re1 {[%clk 0:02:57]}  Be7 {[%clk 0:02:36]} 8. d4 {[%clk 0:02:57]}  O-O {[%clk 0:02:37]} 9. Nbd2 {[%clk 0:02:56]}  Re8 {[%clk 0:02:27]} 10. Bxc6 {[%clk 0:02:42]}  Bxc6 {[%clk 0:02:27]} 11. dxe5 {[%clk 0:02:43]}  dxe5 {[%clk 0:02:27]} 12. Nxe5 {[%clk 0:02:43]}  Bxe4 {[%clk 0:02:23]} 13. Nxe4 {[%clk 0:01:52]}  Qxd1 {[%clk 0:02:22]} 14. Rxd1 {[%clk 0:01:52]}  Nxe4 {[%clk 0:02:21]} 15. Be3 {[%clk 0:01:47]}  Rad8 {[%clk 0:02:03]} 16. Kf1 {[%clk 0:01:43]}  f6 {[%clk 0:01:59]} 17. Nf3 {[%clk 0:01:43]}  Kf7 {[%clk 0:01:55]} 18. Ke2 {[%clk 0:01:42]}  Bd6 {[%clk 0:01:49]} 19. g3 {[%clk 0:01:34]}  g5 {[%clk 0:01:40]} 20. Nd4 {[%clk 0:01:32]}  Kg6 {[%clk 0:01:40]} 21. Kf1 {[%clk 0:01:02]}  h5 {[%clk 0:01:38]} 22. Kg2 {[%clk 0:00:59]}  Nc5 {[%clk 0:01:35]} 23. Nf3 {[%clk 0:00:49]}  Na4 {[%clk 0:01:32]} 24. Rd2 {[%clk 0:00:48]}  Be7 {[%clk 0:01:30]} 25. Rad1 {[%clk 0:00:48]}  Nxb2 {[%clk 0:01:28]} 26. Rxb2 {[%clk 0:00:39]}  Rxd1 {[%clk 0:01:26]} 27. Rxb7 {[%clk 0:00:40]}  Bd6 {[%clk 0:01:23]} 28. Ra7 {[%clk 0:00:36]}  Rd3 {[%clk 0:01:19]} 29. c4 {[%clk 0:00:27]}  Rc3 {[%clk 0:01:17]} 30. c5 {[%clk 0:00:24]}  Bxc5 {[%clk 0:01:14]} 31. Rxc7 {[%clk 0:00:17]}  Bb4 {[%clk 0:01:14]} 32. Ra7 {[%clk 0:00:13]}  Ra3 {[%clk 0:01:12]} 33. Rb7 {[%clk 0:00:12]}  a5 {[%clk 0:01:11]} 34. Rb6 {[%clk 0:00:11]}  Rxa2 {[%clk 0:01:08]} 35. Bxg5 {[%clk 0:00:09]}  Rxf2+ {[%clk 0:01:05]} 36. Kxf2 {[%clk 0:00:03]}  Bc5+ {[%clk 0:01:05]} 37. Kf1 {[%clk 0:00:01]}  Bxb6 {[%clk 0:01:05]} 0-1


[Site "https://www.chess.com"]

[Event "Titled Tuesday Blitz June 29 2021"]
[White "GOGIEFF"]
[Black "Saqo007"]
[WhiteElo "2980"]
[BlackElo "2463"]
[Result "1-0"]
[Round "01"]
[TimeControl "180+1"]
[Date "2021.06.29"]
[WhiteClock "0:01:18"]
[BlackClock "0:00:30"]

1. d4 {[%clk 0:03:00]}  d5 {[%clk 0:02:57]} 2. c4 {[%clk 0:03:01]}  e6 {[%clk 0:02:56]} 3. Nc3 {[%clk 0:02:58]}  Nf6 {[%clk 0:02:57]} 4. cxd5 {[%clk 0:02:58]}  exd5 {[%clk 0:02:57]} 5. Bg5 {[%clk 0:02:57]}  Be7 {[%clk 0:02:53]} 6. e3 {[%clk 0:02:57]}  O-O {[%clk 0:02:53]} 7. Bd3 {[%clk 0:02:57]}  Nbd7 {[%clk 0:02:51]} 8. Nf3 {[%clk 0:02:55]}  b6 {[%clk 0:02:48]} 9. O-O {[%clk 0:02:52]}  Bb7 {[%clk 0:02:48]} 10. Rc1 {[%clk 0:02:48]}  c5 {[%clk 0:02:34]} 11. Bf5 {[%clk 0:02:48]}  g6 {[%clk 0:02:26]} 12. Bh3 {[%clk 0:02:38]}  Re8 {[%clk 0:02:20]} 13. Qa4 {[%clk 0:02:09]}  Nf8 {[%clk 0:01:32]} 14. Rfd1 {[%clk 0:02:02]}  Ne4 {[%clk 0:01:31]} 15. Nxe4 {[%clk 0:01:59]}  dxe4 {[%clk 0:01:31]} 16. dxc5 {[%clk 0:02:00]}  Qc7 {[%clk 0:01:16]} 17. Bf4 {[%clk 0:01:59]}  Qc6 {[%clk 0:01:11]} 18. Qxc6 {[%clk 0:01:58]}  Bxc6 {[%clk 0:01:11]} 19. Nd4 {[%clk 0:01:55]}  Ba4 {[%clk 0:01:09]} 20. b3 {[%clk 0:01:50]}  bxc5 {[%clk 0:01:09]} 21. Nf5 {[%clk 0:01:37]}  Bb5 {[%clk 0:00:53]} 22. Nxe7+ {[%clk 0:01:31]}  Rxe7 {[%clk 0:00:53]} 23. Rxc5 {[%clk 0:01:30]}  Bd3 {[%clk 0:00:53]} 24. Rdc1 {[%clk 0:01:25]}  f5 {[%clk 0:00:51]} 25. g4 {[%clk 0:01:25]}  fxg4 {[%clk 0:00:37]} 26. Bxg4 {[%clk 0:01:24]}  Kf7 {[%clk 0:00:36]} 27. Bd6 {[%clk 0:01:22]}  Rb7 {[%clk 0:00:33]} 28. Rc7+ {[%clk 0:01:22]}  Rxc7 {[%clk 0:00:33]} 29. Rxc7+ {[%clk 0:01:22]}  Kf6 {[%clk 0:00:32]} 30. Be7+ {[%clk 0:01:19]}  Ke5 {[%clk 0:00:30]} 31. Rc5# {[%clk 0:01:18]} 1-0


[Site "https://www.chess.com"]

[Event "Titled Tuesday Blitz June 29 2021"]
[White "GigaQuparadze"]
[Black "partiallySquared"]
[WhiteElo "2950"]
[BlackElo "2459"]
[Result "1-0"]
[Round "01"]
[TimeControl "180+1"]
[Date "2021.06.29"]
[WhiteClock "0:02:18"]
[BlackClock "0:01:42"]

1. e4 {[%clk 0:03:00]}  c5 {[%clk 0:02:59]} 2. Nf3 {[%clk 0:03:00]}  d6 {[%clk 0:03:00]} 3. d4 {[%clk 0:03:00]}  cxd4 {[%clk 0:03:01]} 4. Nxd4 {[%clk 0:03:01]}  Nf6 {[%clk 0:03:01]} 5. Nc3 {[%clk 0:03:01]}  a6 {[%clk 0:03:02]} 6. Be2 {[%clk 0:03:01]}  e6 {[%clk 0:03:01]} 7. O-O {[%clk 0:03:00]}  b5 {[%clk 0:03:01]} 8. a4 {[%clk 0:02:59]}  b4 {[%clk 0:03:00]} 9. Na2 {[%clk 0:02:59]}  Nxe4 {[%clk 0:02:58]} 10. Nxb4 {[%clk 0:02:59]}  Bb7 {[%clk 0:02:57]} 11. a5 {[%clk 0:02:58]}  d5 {[%clk 0:02:55]} 12. c3 {[%clk 0:02:58]}  Be7 {[%clk 0:02:53]} 13. Qa4+ {[%clk 0:02:46]}  Qd7 {[%clk 0:02:47]} 14. Bf4 {[%clk 0:02:42]}  Nc5 {[%clk 0:02:34]} 15. Qxd7+ {[%clk 0:02:38]}  Nbxd7 {[%clk 0:02:35]} 16. Bg3 {[%clk 0:02:36]}  O-O {[%clk 0:02:31]} 17. Ndc6 {[%clk 0:02:36]}  Bf6 {[%clk 0:02:23]} 18. Bd6 {[%clk 0:02:35]}  Rfe8 {[%clk 0:02:20]} 19. Rfd1 {[%clk 0:02:31]}  Ne4 {[%clk 0:02:11]} 20. Bf4 {[%clk 0:02:25]}  Ndc5 {[%clk 0:02:07]} 21. Be3 {[%clk 0:02:22]}  Rec8 {[%clk 0:02:00]} 22. f3 {[%clk 0:02:22]}  Nxc3 {[%clk 0:01:52]} 23. bxc3 {[%clk 0:02:19]}  Bxc6 {[%clk 0:01:42]} 24. Bxc5 {[%clk 0:02:19]}  Bxc3 {[%clk 0:01:42]} 25. Rac1 {[%clk 0:02:18]} 1-0


[Site "https://www.chess.com"]

[Event "Titled Tuesday Blitz June 29 2021"]
[White "GoltsevDmitry2000"]
[Black "MLev0907"]
[WhiteElo "2819"]
[BlackElo "2416"]
[Result "1/2-1/2"]
[Round "01"]
[TimeControl "180+1"]
[Date "2021.06.29"]
[WhiteClock "0:01:26"]
[BlackClock "0:00:10"]

1. e4 {[%clk 0:02:59]}  e6 {[%clk 0:02:59]} 2. d4 {[%clk 0:02:58]}  d5 {[%clk 0:02:58]} 3. exd5 {[%clk 0:02:59]}  exd5 {[%clk 0:02:58]} 4. Bd3 {[%clk 0:03:00]}  Bd6 {[%clk 0:02:57]} 5. Nf3 {[%clk 0:03:00]}  Nf6 {[%clk 0:02:58]} 6. O-O {[%clk 0:03:01]}  O-O {[%clk 0:02:56]} 7. h3 {[%clk 0:03:01]}  c6 {[%clk 0:02:56]} 8. Bg5 {[%clk 0:03:01]}  h6 {[%clk 0:02:55]} 9. Bh4 {[%clk 0:03:01]}  Be6 {[%clk 0:02:55]} 10. Re1 {[%clk 0:03:00]}  Nbd7 {[%clk 0:02:54]} 11. Ne5 {[%clk 0:03:00]}  Qc7 {[%clk 0:02:52]} 12. f4 {[%clk 0:03:00]}  Ne4 {[%clk 0:02:36]} 13. Bxe4 {[%clk 0:02:57]}  dxe4 {[%clk 0:02:37]} 14. Rxe4 {[%clk 0:02:58]}  Bd5 {[%clk 0:02:36]} 15. Re1 {[%clk 0:02:57]}  Rfe8 {[%clk 0:02:27]} 16. Nc3 {[%clk 0:02:56]}  Nb6 {[%clk 0:02:16]} 17. Qg4 {[%clk 0:02:51]}  c5 {[%clk 0:02:04]} 18. Nb5 {[%clk 0:02:48]}  Qb8 {[%clk 0:01:42]} 19. Bf6 {[%clk 0:02:47]}  g6 {[%clk 0:01:37]} 20. f5 {[%clk 0:02:46]}  g5 {[%clk 0:01:13]} 21. h4 {[%clk 0:02:46]}  Bxe5 {[%clk 0:01:11]} 22. hxg5 {[%clk 0:02:45]}  Bh2+ {[%clk 0:01:02]} 23. Kh1 {[%clk 0:02:44]}  Qg3 {[%clk 0:00:57]} 24. Qxg3 {[%clk 0:02:24]}  Bxg3 {[%clk 0:00:56]} 25. Rxe8+ {[%clk 0:02:23]}  Rxe8 {[%clk 0:00:57]} 26. dxc5 {[%clk 0:02:24]}  Re2 {[%clk 0:00:42]} 27. Nc3 {[%clk 0:02:21]}  Rxg2 {[%clk 0:00:36]} 28. Nxd5 {[%clk 0:02:15]}  Rh2+ {[%clk 0:00:36]} 29. Kg1 {[%clk 0:02:16]}  Nxd5 {[%clk 0:00:36]} 30. Rd1 {[%clk 0:02:09]}  Nxf6 {[%clk 0:00:36]} 31. gxf6 {[%clk 0:02:10]}  Rxc2 {[%clk 0:00:34]} 32. Rd8+ {[%clk 0:02:09]}  Kh7 {[%clk 0:00:34]} 33. Rd7 {[%clk 0:02:10]}  Be5 {[%clk 0:00:18]} 34. Rxf7+ {[%clk 0:02:03]}  Kg8 {[%clk 0:00:19]} 35. Rxb7 {[%clk 0:02:02]}  Bxf6 {[%clk 0:00:18]} 36. b4 {[%clk 0:02:00]}  h5 {[%clk 0:00:16]} 37. Rxa7 {[%clk 0:01:58]}  h4 {[%clk 0:00:16]} 38. Rd7 {[%clk 0:01:56]}  h3 {[%clk 0:00:14]} 39. a4 {[%clk 0:01:46]}  Be5 {[%clk 0:00:11]} 40. Rd1 {[%clk 0:01:44]}  Kf7 {[%clk 0:00:06]} 41. a5 {[%clk 0:01:43]}  Rb2 {[%clk 0:00:03]} 42. a6 {[%clk 0:01:38]}  Rxb4 {[%clk 0:00:03]} 43. Re1 {[%clk 0:01:38]}  Bf4 {[%clk 0:00:03]} 44. Ra1 {[%clk 0:01:35]}  Bb8 {[%clk 0:00:01]} 45. a7 {[%clk 0:01:35]}  h2+ {[%clk 0:00:01]} 46. Kh1 {[%clk 0:01:34]}  Bxa7 {[%clk 0:00:02]} 47. Rxa7+ {[%clk 0:01:34]}  Kf6 {[%clk 0:00:03]} 48. c6 {[%clk 0:01:32]}  Rc4 {[%clk 0:00:02]} 49. Rc7 {[%clk 0:01:28]}  Kxf5 {[%clk 0:00:02]} 50. Rc8 {[%clk 0:01:29]}  Ke6 {[%clk 0:00:03]} 51. Kxh2 {[%clk 0:01:27]}  Kd6 {[%clk 0:00:02]} 52. Rd8+ {[%clk 0:01:25]}  Kxc6 {[%clk 0:00:03]} 53. Kg3 {[%clk 0:01:26]}  Kb5 {[%clk 0:00:04]} 54. Kf3 {[%clk 0:01:26]}  Rc5 {[%clk 0:00:04]} 55. Ke3 {[%clk 0:01:26]}  Rc3+ {[%clk 0:00:05]} 56. Kd4 {[%clk 0:01:26]}  Rc4+ {[%clk 0:00:06]} 57. Kd3 {[%clk 0:01:26]}  Rc6 {[%clk 0:00:05]} 58. Rb8+ {[%clk 0:01:27]}  Kc5 {[%clk 0:00:06]} 59. Ke4 {[%clk 0:01:25]}  Kd6 {[%clk 0:00:06]} 60. Rh8 {[%clk 0:01:24]}  Kc7 {[%clk 0:00:06]} 61. Kd5 {[%clk 0:01:24]}  Rd6+ {[%clk 0:00:06]} 62. Ke5 {[%clk 0:01:25]}  Rd1 {[%clk 0:00:06]} 63. Rh7+ {[%clk 0:01:24]}  Kb6 {[%clk 0:00:07]} 64. Rh6+ {[%clk 0:01:24]}  Kc5 {[%clk 0:00:07]} 65. Rh8 {[%clk 0:01:24]}  Re1+ {[%clk 0:00:07]} 66. Kf4 {[%clk 0:01:25]}  Rd1 {[%clk 0:00:08]} 67. Ke3 {[%clk 0:01:25]}  Rd5 {[%clk 0:00:08]} 68. Rc8+ {[%clk 0:01:25]}  Kd6 {[%clk 0:00:08]} 69. Ke4 {[%clk 0:01:26]}  Re5+ {[%clk 0:00:08]} 70. Kd4 {[%clk 0:01:25]}  Rd5+ {[%clk 0:00:08]} 71. Kc4 {[%clk 0:01:26]}  Rh5 {[%clk 0:00:08]} 72. Ra8 {[%clk 0:01:25]}  Kc7 {[%clk 0:00:08]} 73. Ra7+ {[%clk 0:01:25]}  Kb6 {[%clk 0:00:08]} 74. Rg7 {[%clk 0:01:26]}  Rh4+ {[%clk 0:00:09]} 75. Kd5 {[%clk 0:01:26]}  Rh5+ {[%clk 0:00:09]} 76. Kd6 {[%clk 0:01:27]}  Rh1 {[%clk 0:00:09]} 77. Kd7 {[%clk 0:01:27]}  Rd1+ {[%clk 0:00:09]} 78. Kc8 {[%clk 0:01:27]}  Rc1+ {[%clk 0:00:09]} 79. Kb8 {[%clk 0:01:28]}  Re1 {[%clk 0:00:09]} 80. Rb7+ {[%clk 0:01:27]}  Kc6 {[%clk 0:00:09]} 81. Rb2 {[%clk 0:01:27]}  Re8+ {[%clk 0:00:09]} 82. Ka7 {[%clk 0:01:27]}  Re7+ {[%clk 0:00:09]} 83. Ka6 {[%clk 0:01:28]}  Re8 {[%clk 0:00:09]} 84. Rc2+ {[%clk 0:01:28]}  Kd5 {[%clk 0:00:09]} 85. Kb7 {[%clk 0:01:27]}  Re7+ {[%clk 0:00:09]} 86. Kb6 {[%clk 0:01:28]}  Re4 {[%clk 0:00:10]} 87. Rc5+ {[%clk 0:01:27]}  Kd4 {[%clk 0:00:09]} 88. Rh5 {[%clk 0:01:26]}  Kd3 {[%clk 0:00:10]} 89. Kc5 {[%clk 0:01:25]}  Rc4+ {[%clk 0:00:10]} 90. Kb5 {[%clk 0:01:26]}  Re4 {[%clk 0:00:09]} 91. Rh3+ {[%clk 0:01:26]}  Ke2 {[%clk 0:00:10]} 92. Kc5 {[%clk 0:01:26]}  Re3 {[%clk 0:00:10]} 93. Rxe3+ {[%clk 0:01:26]}  Kxe3 {[%clk 0:00:10]} 1/2-1/2


[Site "https://www.chess.com"]

[Event "Titled Tuesday Blitz June 29 2021"]
[White "GracefulYear"]
[Black "Federtiu"]
[WhiteElo "2362"]
[BlackElo "2694"]
[Result "1-0"]
[Round "01"]
[TimeControl "180+1"]
[Date "2021.06.29"]
[WhiteClock "0:00:33"]
[BlackClock "0:00:38"]

1. d4 {[%clk 0:03:00]}  Nf6 {[%clk 0:02:57]} 2. c4 {[%clk 0:03:00]}  e6 {[%clk 0:02:57]} 3. Nc3 {[%clk 0:02:59]}  Bb4 {[%clk 0:02:55]} 4. Nf3 {[%clk 0:02:56]}  Ne4 {[%clk 0:02:53]} 5. Qb3 {[%clk 0:02:52]}  a5 {[%clk 0:02:50]} 6. a3 {[%clk 0:02:52]}  Bxc3+ {[%clk 0:02:49]} 7. bxc3 {[%clk 0:02:52]}  b6 {[%clk 0:02:50]} 8. g3 {[%clk 0:02:51]}  Bb7 {[%clk 0:02:50]} 9. Bg2 {[%clk 0:02:51]}  O-O {[%clk 0:02:50]} 10. O-O {[%clk 0:02:50]}  f5 {[%clk 0:02:46]} 11. Be3 {[%clk 0:02:41]}  Nc6 {[%clk 0:02:36]} 12. d5 {[%clk 0:02:40]}  a4 {[%clk 0:02:25]} 13. Qa2 {[%clk 0:02:29]}  Na5 {[%clk 0:02:24]} 14. Bd4 {[%clk 0:02:19]}  Ba6 {[%clk 0:02:16]} 15. Ne5 {[%clk 0:02:13]}  d6 {[%clk 0:02:16]} 16. Nc6 {[%clk 0:02:09]}  Nxc6 {[%clk 0:02:13]} 17. dxc6 {[%clk 0:02:10]}  Qe8 {[%clk 0:02:12]} 18. f3 {[%clk 0:02:03]}  Nc5 {[%clk 0:01:58]} 19. Bxc5 {[%clk 0:01:34]}  bxc5 {[%clk 0:01:59]} 20. f4 {[%clk 0:01:33]}  Rb8 {[%clk 0:01:59]} 21. e4 {[%clk 0:01:27]}  fxe4 {[%clk 0:01:54]} 22. Bxe4 {[%clk 0:01:26]}  Rb3 {[%clk 0:01:54]} 23. Qc2 {[%clk 0:01:15]}  h6 {[%clk 0:01:51]} 24. Qd3 {[%clk 0:01:15]}  d5 {[%clk 0:01:50]} 25. Bh7+ {[%clk 0:00:43]}  Kh8 {[%clk 0:01:50]} 26. Qg6 {[%clk 0:00:43]}  Qxg6 {[%clk 0:01:47]} 27. Bxg6 {[%clk 0:00:44]}  Bxc4 {[%clk 0:01:47]} 28. Rfe1 {[%clk 0:00:40]}  Rf6 {[%clk 0:01:47]} 29. f5 {[%clk 0:00:36]}  Rxg6 {[%clk 0:01:20]} 30. fxg6 {[%clk 0:00:35]}  d4 {[%clk 0:01:19]} 31. cxd4 {[%clk 0:00:35]}  cxd4 {[%clk 0:01:20]} 32. Re4 {[%clk 0:00:34]}  Rd3 {[%clk 0:00:48]} 33. Rf1 {[%clk 0:00:33]}  Kg8 {[%clk 0:00:38]} 34. Ref4 {[%clk 0:00:33]} 1-0


[Site "https://www.chess.com"]